[Event "*** SCC Grand Prix: Titled Tuesday Blitz"]
[Site "Chess.com"]
[Date "2020.07.21"]
[Round "5"]
[White "mishanick"]
[Black "Funo09"]
[Result "1-0"]
[WhiteElo "2910"]
[BlackElo "2762"]
[TimeControl "180+1"]
[EndTime "10:56:57 PDT"]
[Termination "mishanick won by resignation"]

1. d4 {[%clk 0:03:00.9]} 1... Nf6 {[%clk 0:03:00.7]} 2. c4 {[%clk 0:03:00.9]}
2... Nc6 {[%clk 0:03:01.3]} 3. Nf3 {[%clk 0:02:59.3]} 3... d6 {[%clk 0:03:01.9]}
4. Nc3 {[%clk 0:02:58.5]} 4... e5 {[%clk 0:03:01.8]} 5. d5 {[%clk 0:02:58.8]}
5... Ne7 {[%clk 0:03:00.9]} 6. e4 {[%clk 0:02:59.3]} 6... Ng6 {[%clk 0:02:58.7]}
7. g3 {[%clk 0:02:59.8]} 7... Be7 {[%clk 0:02:58.8]} 8. Be2 {[%clk 0:03:00.2]}
8... O-O {[%clk 0:02:46.5]} 9. h3 {[%clk 0:03:00.2]} 9... c6 {[%clk 0:02:44.8]}
10. Be3 {[%clk 0:03:00.3]} 10... Bd7 {[%clk 0:02:43.8]} 11. a3 {[%clk
0:02:52.9]} 11... cxd5 {[%clk 0:02:23.3]} 12. cxd5 {[%clk 0:02:53.8]} 12... b5
{[%clk 0:02:23.8]} 13. Nd2 {[%clk 0:02:52.3]} 13... a5 {[%clk 0:02:07.8]} 14.
Bxb5 {[%clk 0:02:46.9]} 14... Bxb5 {[%clk 0:01:58.7]} 15. Nxb5 {[%clk
0:02:47.8]} 15... a4 {[%clk 0:01:59.6]} 16. Nc3 {[%clk 0:02:46.8]} 16... Qa5
{[%clk 0:01:58.8]} 17. Qe2 {[%clk 0:02:38.7]} 17... Nd7 {[%clk 0:01:56.3]} 18.
O-O {[%clk 0:02:37]} 18... Rfb8 {[%clk 0:01:48.5]} 19. Nc4 {[%clk 0:02:31.4]}
19... Qa6 {[%clk 0:01:48.4]} 20. Rfc1 {[%clk 0:02:30.6]} 20... h6 {[%clk
0:01:44.2]} 21. Na2 {[%clk 0:02:28.2]} 21... Nc5 {[%clk 0:01:30]} 22. Bxc5
{[%clk 0:02:08.1]} 22... dxc5 {[%clk 0:01:30.9]} 23. Nc3 {[%clk 0:02:08.4]}
23... Rb3 {[%clk 0:01:24]} 24. Rc2 {[%clk 0:02:08.3]} 24... Rab8 {[%clk
0:01:15.9]} 25. Rd1 {[%clk 0:02:07.5]} 25... Bd8 {[%clk 0:01:02.5]} 26. d6
{[%clk 0:02:01.2]} 26... Nf8 {[%clk 0:01:00]} 27. Nxe5 {[%clk 0:01:58]} 27...
Qxe2 {[%clk 0:00:55]} 28. Rxe2 {[%clk 0:01:58.9]} 28... Rxb2 {[%clk 0:00:53.2]}
29. Rxb2 {[%clk 0:01:54.5]} 29... Rxb2 {[%clk 0:00:54.1]} 30. Nc6 {[%clk
0:01:54.7]} 30... Ne6 {[%clk 0:00:53.5]} 31. Nxa4 {[%clk 0:01:54.7]} 31... Ra2
{[%clk 0:00:47.8]} 32. Nxc5 {[%clk 0:01:52.5]} 32... Nxc5 {[%clk 0:00:44.6]} 33.
Nxd8 {[%clk 0:01:51.6]} 33... Rxa3 {[%clk 0:00:45.5]} 34. Nc6 {[%clk 0:01:30.4]}
34... Nd7 {[%clk 0:00:45.6]} 35. e5 {[%clk 0:01:22.9]} 35... Rc3 {[%clk
0:00:38.1]} 36. Ne7+ {[%clk 0:01:13.7]} 36... Kh7 {[%clk 0:00:32.2]} 37. Kg2
{[%clk 0:01:09.7]} 37... g5 {[%clk 0:00:27.1]} 38. Rd5 {[%clk 0:01:04.7]} 38...
Kg7 {[%clk 0:00:21.6]} 39. Nf5+ {[%clk 0:01:04.5]} 39... Kg6 {[%clk 0:00:21.3]}
40. Ne3 {[%clk 0:01:04.5]} 40... Ra3 {[%clk 0:00:17.7]} 41. g4 {[%clk
0:01:04.1]} 41... h5 {[%clk 0:00:16.9]} 42. gxh5+ {[%clk 0:01:03.2]} 42... Kxh5
{[%clk 0:00:17]} 43. Ng4 {[%clk 0:01:03.1]} 43... Kg6 {[%clk 0:00:17]} 44. Ne3
{[%clk 0:00:45.6]} 44... Ra4 {[%clk 0:00:15.2]} 45. Rb5 {[%clk 0:00:43]} 45...
Re4 {[%clk 0:00:15.1]} 46. Ng4 {[%clk 0:00:43.3]} 46... Rd4 {[%clk 0:00:10.5]}
47. Rb7 {[%clk 0:00:40.4]} 47... Nc5 {[%clk 0:00:10.9]} 48. Re7 {[%clk
0:00:26.3]} 48... Ne6 {[%clk 0:00:11.4]} 49. Kf3 {[%clk 0:00:26.8]} 49... Rd3+
{[%clk 0:00:11.1]} 50. Ke2 {[%clk 0:00:24.2]} 50... Rd4 {[%clk 0:00:11.4]} 51.
Ke3 {[%clk 0:00:23.8]} 51... Rd1 {[%clk 0:00:10.9]} 52. d7 {[%clk 0:00:21.9]}
52... Nc5 {[%clk 0:00:08.1]} 53. Nf6 {[%clk 0:00:21.6]} 53... Rd3+ {[%clk
0:00:08.2]} 54. Ke2 {[%clk 0:00:21.6]} 54... Rd4 {[%clk 0:00:08.7]} 55. Ke3
{[%clk 0:00:12.7]} 55... Rd3+ {[%clk 0:00:08.9]} 56. Ke2 {[%clk 0:00:13.2]}
56... Rd4 {[%clk 0:00:09.8]} 57. f3 {[%clk 0:00:13.8]} 57... Kg7 {[%clk
0:00:02.7]} 58. Nh5+ {[%clk 0:00:06.4]} 58... Kg6 {[%clk 0:00:02.3]} 59. Nf6
{[%clk 0:00:06.7]} 59... Kg7 {[%clk 0:00:02.8]} 60. Re8 {[%clk 0:00:07.3]} 60...
Nxd7 {[%clk 0:00:02.4]} 61. Rg8+ {[%clk 0:00:07.3]} 61... Kh6 {[%clk 0:00:02.2]}
62. Rd8 {[%clk 0:00:07.9]} 62... Nxf6 {[%clk 0:00:01.3]} 63. Rxd4 {[%clk
0:00:08]} 63... Nh5 {[%clk 0:00:02.2]} 64. Ke3 {[%clk 0:00:06.8]} 64... Kg6
{[%clk 0:00:02]} 65. Rd7 {[%clk 0:00:05.3]} 65... Ng7 {[%clk 0:00:02.9]} 66. Ke4
{[%clk 0:00:05.1]} 66... Ne6 {[%clk 0:00:03]} 67. Rd6 {[%clk 0:00:05.4]} 67...
Kh5 {[%clk 0:00:02.7]} 68. Kf5 {[%clk 0:00:05.6]} 68... Nf4 {[%clk 0:00:02.8]}
69. Kf6 {[%clk 0:00:05.8]} 69... Nxh3 {[%clk 0:00:03]} 70. Kxf7 {[%clk
0:00:06.2]} 70... Nf4 {[%clk 0:00:03.9]} 71. e6 {[%clk 0:00:06.5]} 1-0

[Event "*** SCC Grand Prix: Titled Tuesday Blitz"]
[Site "Chess.com"]
[Date "2020.07.21"]
[Round "5"]
[White "NiranjanNavalgund"]
[Black "Denmark2015"]
[Result "0-1"]
[WhiteElo "2454"]
[BlackElo "2626"]
[TimeControl "180+1"]
[EndTime "10:57:00 PDT"]
[Termination "Denmark2015 won by checkmate"]

1. e4 {[%clk 0:02:57.5]} 1... e6 {[%clk 0:02:59.6]} 2. d4 {[%clk 0:02:57.3]}
2... d5 {[%clk 0:02:59.8]} 3. Bd3 {[%clk 0:02:56.1]} 3... dxe4 {[%clk
0:02:58.8]} 4. Bxe4 {[%clk 0:02:57]} 4... Nf6 {[%clk 0:02:59.3]} 5. Bf3 {[%clk
0:02:57.2]} 5... c5 {[%clk 0:03:00.2]} 6. Ne2 {[%clk 0:02:57.3]} 6... Nc6 {[%clk
0:03:00.3]} 7. Be3 {[%clk 0:02:56.5]} 7... cxd4 {[%clk 0:03:00.6]} 8. Nxd4
{[%clk 0:02:57.4]} 8... Ne5 {[%clk 0:03:00.9]} 9. Be2 {[%clk 0:02:57.1]} 9...
Be7 {[%clk 0:03:00.1]} 10. O-O {[%clk 0:02:53.8]} 10... O-O {[%clk 0:02:59.8]}
11. f4 {[%clk 0:02:51.3]} 11... Nc6 {[%clk 0:02:47.9]} 12. Nxc6 {[%clk
0:02:50.1]} 12... bxc6 {[%clk 0:02:47.7]} 13. Bf3 {[%clk 0:02:47.6]} 13... Nd5
{[%clk 0:02:36.6]} 14. Bd4 {[%clk 0:02:44.3]} 14... Ba6 {[%clk 0:02:20.7]} 15.
Rf2 {[%clk 0:02:40.2]} 15... c5 {[%clk 0:02:04.6]} 16. Be5 {[%clk 0:02:34.7]}
16... f6 {[%clk 0:01:46.1]} 17. Bc3 {[%clk 0:02:33.6]} 17... Nxf4 {[%clk
0:01:34]} 18. Qe1 {[%clk 0:02:26.8]} 18... Rb8 {[%clk 0:01:15.4]} 19. Bg4 {[%clk
0:02:24.1]} 19... e5 {[%clk 0:01:12.2]} 20. g3 {[%clk 0:02:20]} 20... Ng6 {[%clk
0:01:02]} 21. Nd2 {[%clk 0:02:17.3]} 21... Bc8 {[%clk 0:00:55.2]} 22. Be2 {[%clk
0:01:57.9]} 22... Be6 {[%clk 0:00:54.4]} 23. Rd1 {[%clk 0:01:56.9]} 23... Qc7
{[%clk 0:00:51.2]} 24. Ne4 {[%clk 0:01:56.1]} 24... Rfd8 {[%clk 0:00:48.6]} 25.
Bf3 {[%clk 0:01:52.8]} 25... c4 {[%clk 0:00:48.2]} 26. Rfd2 {[%clk 0:01:52.5]}
26... Rxd2 {[%clk 0:00:47]} 27. Qxd2 {[%clk 0:01:52]} 27... Rd8 {[%clk
0:00:44.7]} 28. Qe2 {[%clk 0:01:51.3]} 28... f5 {[%clk 0:00:35.4]} 29. Nf2
{[%clk 0:01:51.1]} 29... e4 {[%clk 0:00:35.8]} 30. Rxd8+ {[%clk 0:01:49.8]}
30... Qxd8 {[%clk 0:00:34.2]} 31. Bg2 {[%clk 0:01:50.2]} 31... Bc5 {[%clk
0:00:33.1]} 32. Kf1 {[%clk 0:01:50.2]} 32... Qb6 {[%clk 0:00:31.9]} 33. Nd1
{[%clk 0:01:44.9]} 33... Bd4 {[%clk 0:00:31.8]} 34. Qd2 {[%clk 0:01:44.7]} 34...
Bxc3 {[%clk 0:00:29.9]} 35. Qxc3 {[%clk 0:01:45.6]} 35... Qc5 {[%clk 0:00:28.3]}
36. Ne3 {[%clk 0:01:45.8]} 36... Ne5 {[%clk 0:00:27.7]} 37. b4 {[%clk
0:01:44.2]} 37... Qd6 {[%clk 0:00:26]} 38. a3 {[%clk 0:01:39.1]} 38... g6 {[%clk
0:00:25.2]} 39. Ke1 {[%clk 0:01:37.8]} 39... Bf7 {[%clk 0:00:24.9]} 40. Qd2
{[%clk 0:01:36.3]} 40... Qxd2+ {[%clk 0:00:24.2]} 41. Kxd2 {[%clk 0:01:37.2]}
41... Kf8 {[%clk 0:00:22.7]} 42. Kc3 {[%clk 0:01:36.5]} 42... Ke7 {[%clk
0:00:22.7]} 43. Bf1 {[%clk 0:01:30.8]} 43... Nf3 {[%clk 0:00:20.1]} 44. h3
{[%clk 0:01:30.4]} 44... Kf6 {[%clk 0:00:17.1]} 45. Nxc4 {[%clk 0:01:29.6]}
45... Bxc4 {[%clk 0:00:16.4]} 46. Bxc4 {[%clk 0:01:30.2]} 46... Ne5 {[%clk
0:00:16.6]} 47. Be2 {[%clk 0:01:28.9]} 47... g5 {[%clk 0:00:17.5]} 48. Kd4
{[%clk 0:01:29.1]} 48... Ke6 {[%clk 0:00:17.5]} 49. c4 {[%clk 0:01:28.9]} 49...
Nc6+ {[%clk 0:00:17.3]} 50. Kc5 {[%clk 0:01:28]} 50... Kd7 {[%clk 0:00:16.8]}
51. b5 {[%clk 0:01:25.5]} 51... Ne5 {[%clk 0:00:16.7]} 52. Kd4 {[%clk
0:01:25.5]} 52... Ke6 {[%clk 0:00:16]} 53. c5 {[%clk 0:01:25.3]} 53... Nd7
{[%clk 0:00:12.3]} 54. Bc4+ {[%clk 0:01:23.9]} 54... Ke7 {[%clk 0:00:12]} 55. c6
{[%clk 0:01:22.8]} 55... Nb6 {[%clk 0:00:12.3]} 56. Bb3 {[%clk 0:01:18.5]} 56...
Kd6 {[%clk 0:00:12.5]} 57. a4 {[%clk 0:01:18.5]} 57... Nc8 {[%clk 0:00:11]} 58.
a5 {[%clk 0:01:18.4]} 58... h5 {[%clk 0:00:10.9]} 59. Bd1 {[%clk 0:01:15.9]}
59... h4 {[%clk 0:00:09.8]} 60. gxh4 {[%clk 0:01:15.3]} 60... gxh4 {[%clk
0:00:10.7]} 61. Bb3 {[%clk 0:01:10.6]} 61... a6 {[%clk 0:00:11.1]} 62. b6 {[%clk
0:00:48.3]} 62... Nxb6 {[%clk 0:00:10.8]} 63. axb6 {[%clk 0:00:44.6]} 63... Kxc6
{[%clk 0:00:11.2]} 64. Be6 {[%clk 0:00:42.4]} 64... Kxb6 {[%clk 0:00:09]} 65.
Bxf5 {[%clk 0:00:42.6]} 65... Kc7 {[%clk 0:00:09.2]} 66. Ke5 {[%clk 0:00:42.6]}
66... Kd8 {[%clk 0:00:08.7]} 67. Kf6 {[%clk 0:00:42.2]} 67... e3 {[%clk
0:00:08.4]} 68. Bg4 {[%clk 0:00:41.1]} 68... a5 {[%clk 0:00:08.7]} 69. Ke5
{[%clk 0:00:41.1]} 69... a4 {[%clk 0:00:08.9]} 70. Kd4 {[%clk 0:00:39.1]} 70...
a3 {[%clk 0:00:09.4]} 71. Kxe3 {[%clk 0:00:36.3]} 71... a2 {[%clk 0:00:09.3]}
72. Kf4 {[%clk 0:00:37.2]} 72... a1=Q {[%clk 0:00:09.9]} 73. Kg5 {[%clk
0:00:38.1]} 73... Qh8 {[%clk 0:00:10]} 74. Bh5 {[%clk 0:00:37.2]} 74... Ke7
{[%clk 0:00:10.9]} 75. Kxh4 {[%clk 0:00:37.4]} 75... Kf6 {[%clk 0:00:10.6]} 76.
Kg4 {[%clk 0:00:38]} 76... Qg7+ {[%clk 0:00:11.2]} 77. Kf3 {[%clk 0:00:38.3]}
77... Qg5 {[%clk 0:00:11.8]} 78. Bg4 {[%clk 0:00:38.9]} 78... Ke5 {[%clk
0:00:12.3]} 79. Ke2 {[%clk 0:00:39.4]} 79... Qf4 {[%clk 0:00:12.7]} 80. Kd3
{[%clk 0:00:39.8]} 80... Qg3+ {[%clk 0:00:12]} 81. Ke2 {[%clk 0:00:40.5]} 81...
Ke4 {[%clk 0:00:12.1]} 82. Kd2 {[%clk 0:00:41.4]} 82... Kd4 {[%clk 0:00:12.3]}
83. Be2 {[%clk 0:00:41.7]} 83... Qf2 {[%clk 0:00:12]} 84. Kd1 {[%clk 0:00:42]}
84... Kc3 {[%clk 0:00:12]} 85. h4 {[%clk 0:00:42.5]} 85... Qxh4 {[%clk
0:00:12.1]} 86. Bf3 {[%clk 0:00:42.6]} 86... Qf2 {[%clk 0:00:11.2]} 87. Be2
{[%clk 0:00:42.3]} 87... Qg1+ {[%clk 0:00:10.8]} 88. Bf1 {[%clk 0:00:42.8]}
88... Qxf1# {[%clk 0:00:11.2]} 0-1

[Event "*** SCC Grand Prix: Titled Tuesday Blitz"]
[Site "Chess.com"]
[Date "2020.07.21"]
[Round "5"]
[White "IwkooO"]
[Black "swimmerchess"]
[Result "1-0"]
[WhiteElo "2624"]
[BlackElo "2792"]
[TimeControl "180+1"]
[EndTime "10:57:02 PDT"]
[Termination "IwkooO won by resignation"]

1. e4 {[%clk 0:03:00.9]} 1... c5 {[%clk 0:02:59.5]} 2. Nf3 {[%clk 0:03:00.2]}
2... d6 {[%clk 0:02:58.2]} 3. d4 {[%clk 0:03:00.5]} 3... cxd4 {[%clk 0:02:59.1]}
4. Nxd4 {[%clk 0:03:01.3]} 4... Nf6 {[%clk 0:02:57.6]} 5. Nc3 {[%clk 0:03:01.9]}
5... Nc6 {[%clk 0:02:57.8]} 6. Bc4 {[%clk 0:02:49]} 6... Qb6 {[%clk 0:02:55.8]}
7. Nxc6 {[%clk 0:02:48.5]} 7... bxc6 {[%clk 0:02:55.2]} 8. O-O {[%clk
0:02:49.2]} 8... g6 {[%clk 0:02:54]} 9. Bb3 {[%clk 0:02:26.7]} 9... Bg7 {[%clk
0:02:53.4]} 10. Be3 {[%clk 0:02:27.1]} 10... Qc7 {[%clk 0:02:53.4]} 11. h3
{[%clk 0:02:26.4]} 11... O-O {[%clk 0:02:52.8]} 12. Qd2 {[%clk 0:02:25.8]} 12...
a5 {[%clk 0:02:48.1]} 13. Rfe1 {[%clk 0:02:24.2]} 13... a4 {[%clk 0:02:38.8]}
14. Bc4 {[%clk 0:02:18.1]} 14... a3 {[%clk 0:02:39.1]} 15. b3 {[%clk 0:02:12.4]}
15... Qa5 {[%clk 0:02:22.6]} 16. Rad1 {[%clk 0:01:54.1]} 16... Bb7 {[%clk
0:02:13.7]} 17. Bd4 {[%clk 0:01:14.3]} 17... e5 {[%clk 0:02:06.7]} 18. Be3
{[%clk 0:01:12.4]} 18... Rfd8 {[%clk 0:02:06.3]} 19. Bg5 {[%clk 0:01:09.7]}
19... Rd7 {[%clk 0:02:03.1]} 20. Na4 {[%clk 0:01:01.6]} 20... Qc7 {[%clk
0:01:55.4]} 21. Bxf6 {[%clk 0:00:47.5]} 21... Bxf6 {[%clk 0:01:54.8]} 22. Nc5
{[%clk 0:00:48.1]} 22... Rdd8 {[%clk 0:01:50.7]} 23. Nxb7 {[%clk 0:00:48.1]}
23... Qxb7 {[%clk 0:01:51.6]} 24. Qd3 {[%clk 0:00:39.7]} 24... Qe7 {[%clk
0:01:48]} 25. Qf3 {[%clk 0:00:38.6]} 25... Ra7 {[%clk 0:01:45.2]} 26. Rd3 {[%clk
0:00:38.7]} 26... Rad7 {[%clk 0:01:45.2]} 27. b4 {[%clk 0:00:30.3]} 27... Bg5
{[%clk 0:01:44.9]} 28. b5 {[%clk 0:00:15.4]} 28... cxb5 {[%clk 0:01:30.3]} 29.
Bxb5 {[%clk 0:00:16.3]} 29... Rb7 {[%clk 0:01:25.2]} 30. c4 {[%clk 0:00:16.8]}
30... Kg7 {[%clk 0:01:24.2]} 31. Rxa3 {[%clk 0:00:16.9]} 31... Rf8 {[%clk
0:01:23.5]} 32. Rd3 {[%clk 0:00:13.5]} 32... Ra7 {[%clk 0:01:18.8]} 33. a4
{[%clk 0:00:13.3]} 33... f5 {[%clk 0:01:01]} 34. Red1 {[%clk 0:00:13.7]} 34...
fxe4 {[%clk 0:00:53.4]} 35. Qxe4 {[%clk 0:00:14.6]} 35... Rf4 {[%clk 0:00:52.2]}
36. Qc6 {[%clk 0:00:13.4]} 36... Qf8 {[%clk 0:00:46.9]} 37. Qxd6 {[%clk
0:00:12.3]} 37... Re7 {[%clk 0:00:46.4]} 38. f3 {[%clk 0:00:09.5]} 38... e4
{[%clk 0:00:46.5]} 39. fxe4 {[%clk 0:00:09.8]} 39... Rfxe4 {[%clk 0:00:47.4]}
40. Rf1 {[%clk 0:00:06.7]} 40... Re1 {[%clk 0:00:44]} 41. Rf3 {[%clk 0:00:06.1]}
41... Qa8 {[%clk 0:00:26.4]} 42. Qd4+ {[%clk 0:00:05.3]} 42... Kh6 {[%clk
0:00:24.7]} 43. Qd5 {[%clk 0:00:05.5]} 43... Qa7+ {[%clk 0:00:23.4]} 44. Kh1
{[%clk 0:00:05.2]} 44... Qc7 {[%clk 0:00:22.2]} 45. c5 {[%clk 0:00:05.4]} 45...
R7e5 {[%clk 0:00:21.4]} 46. Qd6 {[%clk 0:00:05.3]} 46... Qxc5 {[%clk 0:00:20.3]}
47. Qxc5 {[%clk 0:00:05.6]} 47... Rxf1+ {[%clk 0:00:20.7]} 48. Rxf1 {[%clk
0:00:05.9]} 48... Rxc5 {[%clk 0:00:21.6]} 49. Ra1 {[%clk 0:00:06.6]} 49... Bd8
{[%clk 0:00:21.4]} 50. Bf1 {[%clk 0:00:06]} 50... Ba5 {[%clk 0:00:21.3]} 51. Bb5
{[%clk 0:00:06.4]} 51... Kg5 {[%clk 0:00:21.6]} 52. g3 {[%clk 0:00:06.6]} 52...
Rc3 {[%clk 0:00:21.2]} 53. Kg2 {[%clk 0:00:05.6]} 53... Bc7 {[%clk 0:00:21.5]}
54. h4+ {[%clk 0:00:05.6]} 54... Kf6 {[%clk 0:00:19]} 55. Rf1+ {[%clk
0:00:05.3]} 55... Kg7 {[%clk 0:00:19.4]} 56. Rf3 {[%clk 0:00:05.7]} 56... Rc2+
{[%clk 0:00:19.9]} 57. Kh3 {[%clk 0:00:05.9]} 57... Ra2 {[%clk 0:00:20]} 58. Rc3
{[%clk 0:00:05.6]} 58... Be5 {[%clk 0:00:19.9]} 59. Re3 {[%clk 0:00:05.8]} 59...
Kf6 {[%clk 0:00:20]} 60. Rf3+ {[%clk 0:00:06]} 60... Ke7 {[%clk 0:00:20.3]} 61.
Re3 {[%clk 0:00:05.2]} 61... Kd6 {[%clk 0:00:20.7]} 62. Rd3+ {[%clk 0:00:05.4]}
62... Kc5 {[%clk 0:00:21.2]} 63. Re3 {[%clk 0:00:05.7]} 63... Bd4 {[%clk
0:00:20.9]} 64. Re7 {[%clk 0:00:05.9]} 64... h5 {[%clk 0:00:21.1]} 65. Re1
{[%clk 0:00:03.9]} 65... Ra3 {[%clk 0:00:20.4]} 66. Be8 {[%clk 0:00:03.6]} 66...
Bf2 {[%clk 0:00:19.7]} 67. Rc1+ {[%clk 0:00:03.9]} 67... Kd6 {[%clk 0:00:19.6]}
68. Rd1+ {[%clk 0:00:02.9]} 68... Ke7 {[%clk 0:00:19.4]} 69. Kg2 {[%clk
0:00:03.4]} 69... Bxg3 {[%clk 0:00:18.4]} 70. Bxg6 {[%clk 0:00:04]} 70... Bxh4
{[%clk 0:00:18.6]} 71. Bxh5 {[%clk 0:00:04.6]} 71... Rxa4 {[%clk 0:00:19]} 72.
Be2 {[%clk 0:00:05.2]} 72... Ra2 {[%clk 0:00:18.5]} 73. Kf3 {[%clk 0:00:05.1]}
73... Ra3+ {[%clk 0:00:17.9]} 74. Rd3 {[%clk 0:00:05.7]} 74... Bf6 {[%clk
0:00:18.8]} 75. Rxa3 {[%clk 0:00:05.6]} 1-0

[Event "*** SCC Grand Prix: Titled Tuesday Blitz"]
[Site "Chess.com"]
[Date "2020.07.21"]
[Round "5"]
[White "GoltsevDmitry2000"]
[Black "Ramil_Faizrakhmanov"]
[Result "0-1"]
[WhiteElo "2566"]
[BlackElo "2792"]
[TimeControl "180+1"]
[EndTime "10:57:03 PDT"]
[Termination "Ramil_Faizrakhmanov won by resignation"]

1. e4 {[%clk 0:02:56.4]} 1... c6 {[%clk 0:02:59.5]} 2. Nf3 {[%clk 0:02:55.9]}
2... d5 {[%clk 0:03:00.4]} 3. exd5 {[%clk 0:02:55.7]} 3... cxd5 {[%clk
0:03:01.3]} 4. d4 {[%clk 0:02:55.1]} 4... Nc6 {[%clk 0:03:01.6]} 5. c3 {[%clk
0:02:55.1]} 5... Nf6 {[%clk 0:03:00.6]} 6. Bb5 {[%clk 0:02:55.1]} 6... Bg4
{[%clk 0:02:59.5]} 7. O-O {[%clk 0:02:54]} 7... e6 {[%clk 0:02:59.1]} 8. h3
{[%clk 0:02:53.8]} 8... Bh5 {[%clk 0:02:59.3]} 9. Nbd2 {[%clk 0:02:53]} 9... Bd6
{[%clk 0:02:54.9]} 10. Qa4 {[%clk 0:02:42]} 10... Qc7 {[%clk 0:02:55.1]} 11. Ne5
{[%clk 0:02:42.4]} 11... Rc8 {[%clk 0:02:44.2]} 12. Qxa7 {[%clk 0:02:35.3]}
12... O-O {[%clk 0:02:16.3]} 13. Bxc6 {[%clk 0:02:19.7]} 13... bxc6 {[%clk
0:02:07.7]} 14. Qxc7 {[%clk 0:02:19.1]} 14... Rxc7 {[%clk 0:02:08.6]} 15. g4
{[%clk 0:02:17.2]} 15... Bg6 {[%clk 0:02:06.9]} 16. Nxg6 {[%clk 0:02:16.8]}
16... hxg6 {[%clk 0:02:07.8]} 17. f4 {[%clk 0:01:59.4]} 17... c5 {[%clk
0:02:06.8]} 18. Nf3 {[%clk 0:01:59.1]} 18... Rb8 {[%clk 0:02:02.9]} 19. Kg2
{[%clk 0:01:43.8]} 19... Ne4 {[%clk 0:02:02.1]} 20. Re1 {[%clk 0:01:30.2]} 20...
cxd4 {[%clk 0:01:55.8]} 21. Nxd4 {[%clk 0:01:25.4]} 21... Nc5 {[%clk 0:01:55.6]}
22. Re2 {[%clk 0:01:19.4]} 22... Nd3 {[%clk 0:01:52.2]} 23. Kf3 {[%clk
0:01:18.9]} 23... Rcb7 {[%clk 0:01:43.6]} 24. a4 {[%clk 0:01:02.8]} 24... Nxc1
{[%clk 0:01:29.8]} 25. Rxc1 {[%clk 0:01:03.7]} 25... Rxb2 {[%clk 0:01:30.2]} 26.
Rxb2 {[%clk 0:00:59]} 26... Rxb2 {[%clk 0:01:31.1]} 27. Ra1 {[%clk 0:00:59.4]}
27... Rb8 {[%clk 0:01:17.9]} 28. a5 {[%clk 0:00:57.7]} 28... Bc5 {[%clk
0:01:07.6]} 29. Ke3 {[%clk 0:00:50.4]} 29... Ra8 {[%clk 0:00:45.7]} 30. a6
{[%clk 0:00:49.3]} 30... Kf8 {[%clk 0:00:46.2]} 31. Kd3 {[%clk 0:00:47.2]} 31...
Ke7 {[%clk 0:00:46.3]} 32. Nc6+ {[%clk 0:00:41.9]} 32... Kd6 {[%clk 0:00:45.5]}
33. Ne5 {[%clk 0:00:41.1]} 33... Ra7 {[%clk 0:00:45]} 34. Ra2 {[%clk 0:00:31.3]}
34... g5 {[%clk 0:00:44.7]} 35. Nf3 {[%clk 0:00:15.6]} 35... gxf4 {[%clk
0:00:44.8]} 36. h4 {[%clk 0:00:15.9]} 36... e5 {[%clk 0:00:44.3]} 37. Nd2 {[%clk
0:00:15.1]} 37... e4+ {[%clk 0:00:44.2]} 38. Ke2 {[%clk 0:00:15.3]} 38... f3+
{[%clk 0:00:45.1]} 39. Nxf3 {[%clk 0:00:10.8]} 39... exf3+ {[%clk 0:00:46]} 40.
Kxf3 {[%clk 0:00:11.7]} 40... Kc6 {[%clk 0:00:42]} 41. Kf4 {[%clk 0:00:10.5]}
41... Re7 {[%clk 0:00:34.7]} 42. h5 {[%clk 0:00:08.6]} 42... f6 {[%clk
0:00:31.2]} 43. Kf5 {[%clk 0:00:08.3]} 43... Re5+ {[%clk 0:00:30.7]} 44. Kg6
{[%clk 0:00:05.1]} 44... Rg5+ {[%clk 0:00:30.6]} 45. Kf7 {[%clk 0:00:05.7]}
45... Ba7 {[%clk 0:00:24.3]} 46. Ra4 {[%clk 0:00:04.3]} 46... Kb5 {[%clk
0:00:23]} 47. Rf4 {[%clk 0:00:04.6]} 47... Kxa6 {[%clk 0:00:21.1]} 48. Ke6
{[%clk 0:00:04.5]} 48... Kb5 {[%clk 0:00:19.8]} 49. h6 {[%clk 0:00:04.8]} 49...
gxh6 {[%clk 0:00:20.1]} 50. Kxf6 {[%clk 0:00:05.7]} 50... Bc5 {[%clk 0:00:16.8]}
51. Ke6 {[%clk 0:00:04.5]} 51... Be3 {[%clk 0:00:13.7]} 52. Rf6 {[%clk
0:00:04.4]} 52... Kc5 {[%clk 0:00:11.1]} 53. Rxh6 {[%clk 0:00:03.6]} 53... Rxg4
{[%clk 0:00:08.9]} 54. Ke5 {[%clk 0:00:04.5]} 54... Bxh6 {[%clk 0:00:08.5]} 55.
c4 {[%clk 0:00:04.9]} 55... dxc4 {[%clk 0:00:08.7]} 56. Kf5 {[%clk 0:00:04.7]}
56... Rd4 {[%clk 0:00:09.1]} 57. Kg6 {[%clk 0:00:05.1]} 57... c3 {[%clk
0:00:10]} 58. Kh5 {[%clk 0:00:06]} 58... c2 {[%clk 0:00:10.8]} 59. Kg6 {[%clk
0:00:06.9]} 59... c1=Q {[%clk 0:00:10.9]} 60. Kh7 {[%clk 0:00:07.8]} 60... Bd2
{[%clk 0:00:09]} 61. Kg6 {[%clk 0:00:08.6]} 61... Qf1 {[%clk 0:00:09.1]} 0-1